[Event "Live Chess"]
[Site "Chess.com"]
[Date "2023.05.20"]
[Round "-"]
[White "Hussamalhaidar"]
[Black "AttackingSnowLeopard"]
[Result "0-1"]
[WhiteElo "1008"]
[BlackElo "2120"]
[TimeControl "300"]
[EndTime "10:55:48 PDT"]
[Termination "AttackingSnowLeopard won by checkmate"]

1. b3 {[%clk 0:04:53.8]} 1... d5 {[%clk 0:04:57.8]} 2. Bb2 {[%clk 0:04:52]} 2...
Nf6 {[%clk 0:04:57.5]} 3. e3 {[%clk 0:04:50.2]} 3... Bf5 {[%clk 0:04:55.9]} 4.
Nf3 {[%clk 0:04:47.4]} 4... e6 {[%clk 0:04:55.2]} 5. d3 {[%clk 0:04:45.5]} 5...
Be7 {[%clk 0:04:54.7]} 6. Nbd2 {[%clk 0:04:44.8]} 6... O-O {[%clk 0:04:53.7]} 7.
Be2 {[%clk 0:04:44.2]} 7... c5 {[%clk 0:04:52.8]} 8. O-O {[%clk 0:04:42]} 8...
Nc6 {[%clk 0:04:52.3]} 9. c4 {[%clk 0:04:36]} 9... dxc4 {[%clk 0:04:48.7]} 10.
Nxc4 {[%clk 0:04:31.4]} 10... b5 {[%clk 0:04:44.6]} 11. Nce5 {[%clk 0:04:29.1]}
11... Nxe5 {[%clk 0:04:41.1]} 12. Nxe5 {[%clk 0:04:24.7]} 12... Rc8 {[%clk
0:04:40.6]} 13. f4 {[%clk 0:04:21.3]} 13... Nd7 {[%clk 0:04:37.6]} 14. Rf3
{[%clk 0:04:07.5]} 14... Nxe5 {[%clk 0:04:30]} 15. Bxe5 {[%clk 0:04:01.8]} 15...
f6 {[%clk 0:04:24.3]} 16. Bb2 {[%clk 0:03:54.4]} 16... Bg4 {[%clk 0:04:23.1]}
17. Rg3 {[%clk 0:03:50.2]} 17... Bxe2 {[%clk 0:04:22.6]} 18. Qxe2 {[%clk
0:03:46.4]} 18... Rf7 {[%clk 0:04:05.5]} 19. Rh3 {[%clk 0:03:26.1]} 19... f5
{[%clk 0:04:01.7]} 20. Qh5 {[%clk 0:03:18.8]} 20... g6 {[%clk 0:04:00.6]} 21.
Qh6 {[%clk 0:03:14.2]} 21... Bf6 {[%clk 0:04:00.1]} 22. Bxf6 {[%clk 0:03:03.7]}
22... Qxf6 {[%clk 0:03:58.6]} 23. Rb1 {[%clk 0:02:45.2]} 23... Qc3 {[%clk
0:03:52]} 24. d4 {[%clk 0:02:30.3]} 24... cxd4 {[%clk 0:03:46.3]} 25. exd4
{[%clk 0:02:18.1]} 25... Qxd4+ {[%clk 0:03:45.7]} 26. Kf1 {[%clk 0:02:14.3]}
26... Qe4 {[%clk 0:03:38.9]} 27. Re1 {[%clk 0:01:59.2]} 27... Qd5 {[%clk
0:03:29.8]} 28. Qh4 {[%clk 0:01:50.8]} 28... Rc2 {[%clk 0:03:26.6]} 29. Rhe3
{[%clk 0:01:46.9]} 29... Qxg2# {[%clk 0:03:24.5]} 0-1

[Event "Live Chess"]
[Site "Chess.com"]
[Date "2023.05.20"]
[Round "-"]
[White "Olisingapore"]
[Black "wot-not"]
[Result "1-0"]
[WhiteElo "1929"]
[BlackElo "1462"]
[TimeControl "300"]
[EndTime "10:55:49 PDT"]
[Termination "Olisingapore won by resignation"]

1. d4 {[%clk 0:04:57]} 1... Nf6 {[%clk 0:04:58.5]} 2. c4 {[%clk 0:04:56.9]} 2...
c5 {[%clk 0:04:57.7]} 3. d5 {[%clk 0:04:55.7]} 3... d6 {[%clk 0:04:57.2]} 4. g3
{[%clk 0:04:53.3]} 4... e5 {[%clk 0:04:56.5]} 5. Bg2 {[%clk 0:04:53.2]} 5... Be7
{[%clk 0:04:55.1]} 6. e4 {[%clk 0:04:52.1]} 6... Nbd7 {[%clk 0:04:53.9]} 7. Nc3
{[%clk 0:04:52]} 7... Nf8 {[%clk 0:04:53.1]} 8. Nf3 {[%clk 0:04:51]} 8... Ng6
{[%clk 0:04:52.6]} 9. O-O {[%clk 0:04:50.8]} 9... O-O {[%clk 0:03:56.3]} 10. h3
{[%clk 0:04:43.9]} 10... h6 {[%clk 0:03:55.1]} 11. Be3 {[%clk 0:04:36.1]} 11...
Nh7 {[%clk 0:03:53.9]} 12. Nh4 {[%clk 0:04:32.9]} 12... Nxh4 {[%clk 0:03:50.8]}
13. gxh4 {[%clk 0:04:31.9]} 13... Bxh4 {[%clk 0:03:48.2]} 14. Qg4 {[%clk
0:04:28.7]} 14... Bg5 {[%clk 0:03:45.1]} 15. Qg3 {[%clk 0:04:02.5]} 15... Bxe3
{[%clk 0:03:43.2]} 16. fxe3 {[%clk 0:04:00.5]} 16... Qg5 {[%clk 0:03:42.1]} 17.
Qxg5 {[%clk 0:03:52.7]} 17... Nxg5 {[%clk 0:03:40.2]} 18. Kh2 {[%clk 0:03:50.2]}
18... f5 {[%clk 0:03:33.2]} 19. Nb5 {[%clk 0:03:37.1]} 19... Rf6 {[%clk
0:02:56.3]} 20. exf5 {[%clk 0:03:21.3]} 20... a6 {[%clk 0:02:55.4]} 21. Nc7
{[%clk 0:03:16.2]} 21... Rb8 {[%clk 0:02:54.3]} 22. Ne8 {[%clk 0:03:13.6]} 22...
Rxf5 {[%clk 0:02:51]} 23. Nxd6 {[%clk 0:03:09.6]} 23... Rxf1 {[%clk 0:02:48.7]}
24. Rxf1 {[%clk 0:03:07.8]} 24... Bd7 {[%clk 0:02:25.6]} 25. h4 {[%clk
0:03:02.6]} 25... Nh7 {[%clk 0:02:20.2]} 26. Bh3 {[%clk 0:03:00.1]} 26... Bxh3
{[%clk 0:02:18.1]} 27. Kxh3 {[%clk 0:03:00]} 27... Nf6 {[%clk 0:02:17.2]} 28. e4
{[%clk 0:02:44.4]} 28... b5 {[%clk 0:02:14.2]} 29. cxb5 {[%clk 0:02:42.1]} 29...
axb5 {[%clk 0:02:13.6]} 30. a3 {[%clk 0:02:39.5]} 30... b4 {[%clk 0:02:11.5]}
31. Rf3 {[%clk 0:02:36.2]} 31... c4 {[%clk 0:01:49.5]} 32. Nxc4 {[%clk
0:02:24.8]} 32... Nxe4 {[%clk 0:01:48.2]} 33. Nxe5 {[%clk 0:02:19.5]} 33... bxa3
{[%clk 0:01:44.5]} 34. bxa3 {[%clk 0:02:18.3]} 34... Nf6 {[%clk 0:01:34.8]} 35.
d6 {[%clk 0:02:14.5]} 35... Rb7 {[%clk 0:01:24.5]} 36. Rd3 {[%clk 0:02:10.8]}
36... Nd7 {[%clk 0:01:21.5]} 37. Nxd7 {[%clk 0:02:08.9]} 37... Rxd7 {[%clk
0:01:20.9]} 38. a4 {[%clk 0:02:07]} 38... Kf7 {[%clk 0:01:20.6]} 39. Kg4 {[%clk
0:02:06]} 39... Ke8 {[%clk 0:01:18.3]} 40. a5 {[%clk 0:02:02.4]} 40... Ra7
{[%clk 0:01:13.4]} 41. Rd5 {[%clk 0:02:00.5]} 41... Kd7 {[%clk 0:01:07.9]} 42.
Kf5 {[%clk 0:01:59]} 42... Kc6 {[%clk 0:01:05.4]} 43. Ke6 {[%clk 0:01:55.3]}
43... Rd7 {[%clk 0:00:55.8]} 44. a6 {[%clk 0:01:52.4]} 44... Kb6 {[%clk
0:00:54.2]} 45. Kxd7 {[%clk 0:01:50.8]} 1-0

[Event "Live Chess"]
[Site "Chess.com"]
[Date "2023.05.20"]
[Round "-"]
[White "Conradical12"]
[Black "mach247"]
[Result "1-0"]
[WhiteElo "1523"]
[BlackElo "1299"]
[TimeControl "300"]
[EndTime "10:55:51 PDT"]
[Termination "Conradical12 won by resignation"]

1. e4 {[%clk 0:04:58.6]} 1... d5 {[%clk 0:04:59.3]} 2. exd5 {[%clk 0:04:56.8]}
2... Qxd5 {[%clk 0:04:59.2]} 3. Nc3 {[%clk 0:04:39.6]} 3... Qd8 {[%clk
0:04:58.3]} 4. Nf3 {[%clk 0:04:38.2]} 4... Bg4 {[%clk 0:04:56.6]} 5. Bc4 {[%clk
0:04:37.6]} 5... e6 {[%clk 0:04:54.9]} 6. O-O {[%clk 0:04:35.8]} 6... Nf6 {[%clk
0:04:53.6]} 7. d3 {[%clk 0:04:34]} 7... Be7 {[%clk 0:04:45]} 8. Be3 {[%clk
0:04:29.8]} 8... O-O {[%clk 0:04:41.6]} 9. h3 {[%clk 0:04:18]} 9... Bh5 {[%clk
0:04:34.2]} 10. Kh2 {[%clk 0:04:08]} 10... Bd6+ {[%clk 0:04:07.8]} 11. g3 {[%clk
0:04:04.3]} 11... Nbd7 {[%clk 0:03:48.9]} 12. Qe2 {[%clk 0:03:58.7]} 12... Nb6
{[%clk 0:03:47.3]} 13. Bxb6 {[%clk 0:03:53.8]} 13... axb6 {[%clk 0:03:44.6]} 14.
Rad1 {[%clk 0:03:53.6]} 14... c6 {[%clk 0:03:05.1]} 15. Ne4 {[%clk 0:03:51.1]}
15... Nxe4 {[%clk 0:03:03.5]} 16. dxe4 {[%clk 0:03:49.5]} 16... Bxf3 {[%clk
0:02:51]} 17. Qxf3 {[%clk 0:03:47]} 17... Qc7 {[%clk 0:02:46]} 18. Qg4 {[%clk
0:03:37.8]} 18... b5 {[%clk 0:02:42]} 19. Bxe6 {[%clk 0:03:36]} 19... fxe6
{[%clk 0:02:39.9]} 20. Qxe6+ {[%clk 0:03:35.9]} 20... Kh8 {[%clk 0:02:39.1]} 21.
Qxd6 {[%clk 0:03:34.7]} 21... Qf7 {[%clk 0:02:35.9]} 22. f4 {[%clk 0:03:30]}
22... Rad8 {[%clk 0:02:33.5]} 23. Qxd8 {[%clk 0:03:27]} 23... Rxd8 {[%clk
0:02:29.4]} 24. Rxd8+ {[%clk 0:03:26.9]} 24... Qg8 {[%clk 0:02:29.2]} 25. Rxg8+
{[%clk 0:03:25.5]} 25... Kxg8 {[%clk 0:02:28.9]} 26. Rd1 {[%clk 0:03:25.3]} 1-0

[Event "Live Chess"]
[Site "Chess.com"]
[Date "2023.05.20"]
[Round "-"]
[White "lucaskk818"]
[Black "KirbyHasARevenge"]
[Result "1-0"]
[WhiteElo "1884"]
[BlackElo "1739"]
[TimeControl "300"]
[EndTime "10:55:51 PDT"]
[Termination "lucaskk818 won by resignation"]

1. Nf3 {[%clk 0:04:58.7]} 1... Nf6 {[%clk 0:04:57.4]} 2. b3 {[%clk 0:04:58]}
2... g6 {[%clk 0:04:57.3]} 3. Bb2 {[%clk 0:04:57.1]} 3... Bg7 {[%clk 0:04:56.1]}
4. e3 {[%clk 0:04:56.8]} 4... O-O {[%clk 0:04:55.2]} 5. d4 {[%clk 0:04:56.4]}
5... d6 {[%clk 0:04:54.6]} 6. c4 {[%clk 0:04:55.9]} 6... Nbd7 {[%clk 0:04:54]}
7. Bd3 {[%clk 0:04:55.4]} 7... c5 {[%clk 0:04:53.5]} 8. h3 {[%clk 0:04:54.6]}
8... cxd4 {[%clk 0:04:50.7]} 9. Nxd4 {[%clk 0:04:50]} 9... e5 {[%clk 0:04:49.4]}
10. Ne2 {[%clk 0:04:44.9]} 10... Qe7 {[%clk 0:04:48.6]} 11. O-O {[%clk 0:04:43]}
11... Rd8 {[%clk 0:04:46.1]} 12. Ng3 {[%clk 0:04:35.8]} 12... Nc5 {[%clk
0:04:43.4]} 13. Bc2 {[%clk 0:04:33.2]} 13... Be6 {[%clk 0:04:39.6]} 14. Nd2
{[%clk 0:04:30.7]} 14... Qd7 {[%clk 0:04:34.2]} 15. Qf3 {[%clk 0:04:21.9]} 15...
e4 {[%clk 0:04:09.2]} 16. Ngxe4 {[%clk 0:04:17.6]} 16... Nfxe4 {[%clk
0:04:08.2]} 17. Nxe4 {[%clk 0:04:12.3]} 17... Nxe4 {[%clk 0:04:00.7]} 18. Bxg7
{[%clk 0:03:47.4]} 18... Kxg7 {[%clk 0:04:00.6]} 19. Bxe4 {[%clk 0:03:39.8]}
19... Rab8 {[%clk 0:03:58.2]} 20. Bd5 {[%clk 0:03:36.1]} 20... Qe7 {[%clk
0:03:56.5]} 21. Bxe6 {[%clk 0:03:34.4]} 21... Qxe6 {[%clk 0:03:56.4]} 22. Rad1
{[%clk 0:03:26.8]} 22... Rd7 {[%clk 0:03:52.2]} 23. Qd5 {[%clk 0:03:23.9]} 23...
Qe7 {[%clk 0:03:45.7]} 24. Rd2 {[%clk 0:03:16.9]} 24... Rbd8 {[%clk 0:03:42.9]}
25. Rfd1 {[%clk 0:03:13.6]} 25... b6 {[%clk 0:03:39.8]} 26. b4 {[%clk
0:03:02.1]} 26... Qe5 {[%clk 0:03:35.7]} 27. Qxe5+ {[%clk 0:02:59.1]} 1-0

[Event "Live Chess"]
[Site "Chess.com"]
[Date "2023.05.20"]
[Round "-"]
[White "birdseed45"]
[Black "alanmike75"]
[Result "0-1"]
[WhiteElo "1853"]
[BlackElo "1505"]
[TimeControl "300"]
[EndTime "10:55:53 PDT"]
[Termination "alanmike75 won by checkmate"]

1. e4 {[%clk 0:04:57.9]} 1... e5 {[%clk 0:04:58.3]} 2. Nf3 {[%clk 0:04:56.5]}
2... d6 {[%clk 0:04:56.8]} 3. Bb5+ {[%clk 0:04:55.1]} 3... c6 {[%clk 0:04:52.6]}
4. Ba4 {[%clk 0:04:54.4]} 4... Nf6 {[%clk 0:04:49.3]} 5. d3 {[%clk 0:04:52.1]}
5... Be7 {[%clk 0:04:48.2]} 6. O-O {[%clk 0:04:49.9]} 6... O-O {[%clk 0:04:47]}
7. h3 {[%clk 0:04:48.9]} 7... Be6 {[%clk 0:04:42.6]} 8. c3 {[%clk 0:04:47.7]}
8... b5 {[%clk 0:04:40.1]} 9. Bb3 {[%clk 0:04:45.8]} 9... Bxb3 {[%clk
0:04:37.8]} 10. Qxb3 {[%clk 0:04:45.7]} 10... Nbd7 {[%clk 0:04:35.5]} 11. Re1
{[%clk 0:04:44.6]} 11... Nc5 {[%clk 0:04:34.3]} 12. Qc2 {[%clk 0:04:42.9]} 12...
Ne6 {[%clk 0:04:32.9]} 13. Nbd2 {[%clk 0:04:38.1]} 13... c5 {[%clk 0:04:31.5]}
14. Nf1 {[%clk 0:04:35.7]} 14... a5 {[%clk 0:04:29.2]} 15. Ne3 {[%clk
0:04:32.1]} 15... b4 {[%clk 0:04:26.3]} 16. Nf5 {[%clk 0:04:30.6]} 16... Qd7
{[%clk 0:04:00.8]} 17. Be3 {[%clk 0:04:21.9]} 17... Bd8 {[%clk 0:03:58.6]} 18.
g4 {[%clk 0:04:16.8]} 18... g6 {[%clk 0:03:56.8]} 19. Ng3 {[%clk 0:04:03.8]}
19... Nf4 {[%clk 0:03:45.1]} 20. Kh2 {[%clk 0:03:59.3]} 20... h5 {[%clk
0:03:31.8]} 21. gxh5 {[%clk 0:03:53.5]} 21... Qxh3+ {[%clk 0:03:25.1]} 22. Kg1
{[%clk 0:03:51.5]} 22... Qg2# {[%clk 0:03:23.6]} 0-1

[Event "Live Chess"]
[Site "Chess.com"]
[Date "2023.05.20"]
[Round "-"]
[White "NAZRIZ1977"]
[Black "Leonid_Starozhilov"]
[Result "1-0"]
[WhiteElo "2181"]
[BlackElo "2644"]
[TimeControl "300"]
[EndTime "10:55:54 PDT"]
[Termination "NAZRIZ1977 won by checkmate"]

1. d4 {[%clk 0:04:56.2]} 1... Nf6 {[%clk 0:04:59]} 2. Nc3 {[%clk 0:04:55.7]}
2... d5 {[%clk 0:04:57.1]} 3. Bf4 {[%clk 0:04:55.2]} 3... a6 {[%clk 0:04:56.1]}
4. e3 {[%clk 0:04:54.5]} 4... c5 {[%clk 0:04:55.2]} 5. dxc5 {[%clk 0:04:53.9]}
5... e6 {[%clk 0:04:53.6]} 6. Nf3 {[%clk 0:04:53.3]} 6... Bxc5 {[%clk
0:04:52.3]} 7. Bd3 {[%clk 0:04:53]} 7... Bb4 {[%clk 0:04:46.9]} 8. O-O {[%clk
0:04:51.8]} 8... O-O {[%clk 0:04:44.1]} 9. Ne2 {[%clk 0:04:50.5]} 9... Nc6
{[%clk 0:04:42.5]} 10. c4 {[%clk 0:04:48.6]} 10... e5 {[%clk 0:04:35.7]} 11.
Nxe5 {[%clk 0:04:44]} 11... Bg4 {[%clk 0:04:25.9]} 12. Nxg4 {[%clk 0:04:36.7]}
12... Nxg4 {[%clk 0:04:23.5]} 13. cxd5 {[%clk 0:04:35.8]} 13... Ne7 {[%clk
0:04:17]} 14. d6 {[%clk 0:04:34]} 14... Ng6 {[%clk 0:04:12.6]} 15. Bxg6 {[%clk
0:04:31.4]} 15... hxg6 {[%clk 0:04:11.3]} 16. h3 {[%clk 0:04:30.9]} 16... Nf6
{[%clk 0:04:10.5]} 17. a3 {[%clk 0:04:26.8]} 17... Bc5 {[%clk 0:04:08.5]} 18. b4
{[%clk 0:04:25.1]} 18... Bb6 {[%clk 0:04:07.8]} 19. Qd3 {[%clk 0:04:21]} 19...
Qd7 {[%clk 0:04:01.6]} 20. Rfd1 {[%clk 0:04:18.9]} 20... Rfe8 {[%clk 0:03:50.4]}
21. Rac1 {[%clk 0:04:15.9]} 21... Re6 {[%clk 0:03:48.7]} 22. Nd4 {[%clk
0:04:12.8]} 22... Ree8 {[%clk 0:03:39.5]} 23. Nf3 {[%clk 0:04:10.7]} 23... Qa4
{[%clk 0:03:32.5]} 24. Ne5 {[%clk 0:03:47.8]} 24... Rad8 {[%clk 0:03:26.5]} 25.
Qc4 {[%clk 0:03:33.7]} 25... Re6 {[%clk 0:03:12.6]} 26. Nxg6 {[%clk 0:03:31.5]}
26... Ne4 {[%clk 0:03:08.1]} 27. Ne7+ {[%clk 0:03:21.5]} 27... Kf8 {[%clk
0:03:00.1]} 28. Nd5 {[%clk 0:03:18.4]} 28... Ba7 {[%clk 0:02:37.6]} 29. Nc3
{[%clk 0:03:16.5]} 29... Qe8 {[%clk 0:02:26.8]} 30. Nxe4 {[%clk 0:03:05.8]}
30... Rxe4 {[%clk 0:02:26.7]} 31. Qd5 {[%clk 0:03:00.7]} 31... Bb6 {[%clk
0:02:11]} 32. Qxb7 {[%clk 0:02:57.1]} 32... Rb8 {[%clk 0:02:01.2]} 33. Qxa6
{[%clk 0:02:51.6]} 33... Qd7 {[%clk 0:01:47.9]} 34. Qd3 {[%clk 0:02:44.4]} 34...
Rbe8 {[%clk 0:01:35.6]} 35. Rc4 {[%clk 0:02:39.7]} 35... R4e6 {[%clk 0:01:30.5]}
36. Qh7 {[%clk 0:02:36.5]} 36... f6 {[%clk 0:01:29.9]} 37. Qh8+ {[%clk
0:02:29.3]} 37... Kf7 {[%clk 0:01:29]} 38. Qh5+ {[%clk 0:02:28.9]} 38... Kg8
{[%clk 0:01:28.2]} 39. Qd5 {[%clk 0:02:24.2]} 39... g5 {[%clk 0:01:20.9]} 40.
Bxg5 {[%clk 0:02:12.8]} 40... fxg5 {[%clk 0:01:19.7]} 41. Rg4 {[%clk 0:02:12.3]}
41... Kh7 {[%clk 0:01:02.7]} 42. Qxg5 {[%clk 0:02:06.5]} 42... Rh6 {[%clk
0:01:01.7]} 43. Rh4 {[%clk 0:02:00.5]} 43... Re6 {[%clk 0:00:51.8]} 44. Qf5+
{[%clk 0:01:54.2]} 44... Kg7 {[%clk 0:00:48.5]} 45. Rxh6 {[%clk 0:01:52.1]}
45... Kxh6 {[%clk 0:00:47.8]} 46. h4 {[%clk 0:01:43.9]} 46... Kg7 {[%clk
0:00:46.5]} 47. h5 {[%clk 0:01:40.9]} 47... Bd8 {[%clk 0:00:44.9]} 48. Rd4
{[%clk 0:01:34]} 48... Qe8 {[%clk 0:00:36.3]} 49. d7 {[%clk 0:01:21.8]} 49...
Qf7 {[%clk 0:00:32.1]} 50. Rg4+ {[%clk 0:01:11.9]} 50... Kf8 {[%clk 0:00:31.3]}
51. Qc5+ {[%clk 0:01:10.6]} 51... Qe7 {[%clk 0:00:27.8]} 52. Rf4+ {[%clk
0:01:07.2]} 52... Kg8 {[%clk 0:00:24.3]} 53. Qxe7 {[%clk 0:01:01.6]} 53... Rxe7
{[%clk 0:00:23.4]} 54. Rd4 {[%clk 0:01:01.2]} 54... Re5 {[%clk 0:00:21.1]} 55.
g4 {[%clk 0:00:58.3]} 55... Kf7 {[%clk 0:00:20.6]} 56. a4 {[%clk 0:00:56.4]}
56... Ke6 {[%clk 0:00:18.9]} 57. a5 {[%clk 0:00:54.9]} 57... Rb5 {[%clk
0:00:18.1]} 58. h6 {[%clk 0:00:51.4]} 58... Kf7 {[%clk 0:00:16.4]} 59. f4 {[%clk
0:00:48]} 59... Kg6 {[%clk 0:00:15.9]} 60. g5 {[%clk 0:00:47]} 60... Rb7 {[%clk
0:00:14.4]} 61. a6 {[%clk 0:00:45.3]} 61... Rb6 {[%clk 0:00:13.2]} 62. b5 {[%clk
0:00:33.7]} 62... Rxb5 {[%clk 0:00:12.4]} 63. Rd6+ {[%clk 0:00:33.4]} 63... Kh7
{[%clk 0:00:11.2]} 64. Kg2 {[%clk 0:00:32.6]} 64... Rb3 {[%clk 0:00:09.9]} 65.
Kf3 {[%clk 0:00:31.4]} 65... Ra3 {[%clk 0:00:09.5]} 66. f5 {[%clk 0:00:28.7]}
66... Kg8 {[%clk 0:00:08.7]} 67. g6 {[%clk 0:00:27.6]} 67... Kf8 {[%clk
0:00:08.6]} 68. g7+ {[%clk 0:00:26.6]} 68... Ke7 {[%clk 0:00:08.2]} 69. g8=Q
{[%clk 0:00:24.8]} 69... Kxd6 {[%clk 0:00:07.7]} 70. Qxd8 {[%clk 0:00:23.7]}
70... Ra1 {[%clk 0:00:06.3]} 71. Qf6+ {[%clk 0:00:22.2]} 71... Kc5 {[%clk
0:00:05.2]} 72. d8=Q {[%clk 0:00:21.4]} 72... Rf1+ {[%clk 0:00:03.9]} 73. Ke2
{[%clk 0:00:20.6]} 73... Rc1 {[%clk 0:00:03.2]} 74. Qc8+ {[%clk 0:00:19.4]}
74... Kb5 {[%clk 0:00:02.6]} 75. Qxc1 {[%clk 0:00:18.7]} 75... Ka5 {[%clk
0:00:01.8]} 76. Qe5+ {[%clk 0:00:17.4]} 76... Ka4 {[%clk 0:00:01.4]} 77. Qd4+
{[%clk 0:00:16.7]} 77... Kb3 {[%clk 0:00:00.4]} 78. Qdc4# {[%clk 0:00:15.3]} 1-0

[Event "Live Chess"]
[Site "Chess.com"]
[Date "2023.05.20"]
[Round "-"]
[White "jusjoel"]
[Black "hturner40"]
[Result "0-1"]
[WhiteElo "296"]
[BlackElo "1820"]
[TimeControl "300"]
[EndTime "10:55:59 PDT"]
[Termination "hturner40 won by resignation"]

1. d4 {[%clk 0:04:55.5]} 1... Nf6 {[%clk 0:04:57.3]} 2. e3 {[%clk 0:04:44.1]}
2... Nc6 {[%clk 0:04:54.8]} 3. Bc4 {[%clk 0:04:38.3]} 3... d5 {[%clk 0:04:52.6]}
4. Bb5 {[%clk 0:04:28.3]} 4... Qd6 {[%clk 0:04:47.3]} 5. Qf3 {[%clk 0:04:06.2]}
5... a6 {[%clk 0:04:32]} 6. Bxc6+ {[%clk 0:04:03.7]} 6... Qxc6 {[%clk
0:04:30.8]} 7. Ne2 {[%clk 0:03:56.7]} 7... Bg4 {[%clk 0:04:25]} 8. Qf4 {[%clk
0:03:29.7]} 8... Qxc2 {[%clk 0:04:09]} 9. Nbc3 {[%clk 0:03:19.7]} 9... Bxe2
{[%clk 0:03:59.7]} 10. Bd2 {[%clk 0:02:43.2]} 10... Bd3 {[%clk 0:03:11.3]} 11.
Qxc7 {[%clk 0:02:33.8]} 11... Qxb2 {[%clk 0:02:59.2]} 12. Rc1 {[%clk 0:02:22.4]}
12... e6 {[%clk 0:02:41.6]} 13. Qxb7 {[%clk 0:02:06.4]} 13... Qxb7 {[%clk
0:02:38.9]} 0-1